[Event "Late-Titled-Tuesday-Blitz-April-16-2024"]
[Site "Chess.com"]
[Date "2024.04.16"]
[Round "8"]
[White "vladislavkovalev"]
[Black "diokletian"]
[Result "1-0"]
[WhiteElo "2867"]
[BlackElo "2681"]
[TimeControl "180+1"]
[EndTime "15:25:54 PDT"]
[Termination "vladislavkovalev won by resignation"]

1. e4 {[%clk 0:02:21.8]} 1... e6 {[%clk 0:02:55.4]} 2. d4 {[%clk 0:02:21.8]}
2... d5 {[%clk 0:02:55.7]} 3. Nd2 {[%clk 0:02:22.2]} 3... dxe4 {[%clk
0:02:54.5]} 4. Nxe4 {[%clk 0:02:23.1]} 4... Nd7 {[%clk 0:02:54.4]} 5. Nf3 {[%clk
0:02:21.1]} 5... Ngf6 {[%clk 0:02:54.9]} 6. Bd3 {[%clk 0:02:20.2]} 6... c5
{[%clk 0:02:55]} 7. O-O {[%clk 0:02:10.8]} 7... Nxe4 {[%clk 0:02:49.2]} 8. Bxe4
{[%clk 0:02:11.1]} 8... Nf6 {[%clk 0:02:49]} 9. Bg5 {[%clk 0:02:04.9]} 9... cxd4
{[%clk 0:02:49]} 10. Nxd4 {[%clk 0:01:52.1]} 10... Bc5 {[%clk 0:02:32.5]} 11.
Nb3 {[%clk 0:01:48.9]} 11... Qxd1 {[%clk 0:02:14.5]} 12. Raxd1 {[%clk
0:01:49.8]} 12... Bb6 {[%clk 0:02:14.6]} 13. Bf3 {[%clk 0:01:47.8]} 13... Ke7
{[%clk 0:01:59.9]} 14. c4 {[%clk 0:01:31.7]} 14... Bc7 {[%clk 0:01:36.7]} 15.
Be3 {[%clk 0:01:10.9]} 15... Rd8 {[%clk 0:01:31.7]} 16. Bc5+ {[%clk 0:00:45.1]}
16... Ke8 {[%clk 0:01:30.7]} 17. Rxd8+ {[%clk 0:00:45.3]} 17... Bxd8 {[%clk
0:01:23.8]} 18. Rd1 {[%clk 0:00:45.9]} 18... Bb6 {[%clk 0:01:11.9]} 19. Bd6
{[%clk 0:00:42.5]} 19... Bd8 {[%clk 0:01:02.5]} 20. Nc5 {[%clk 0:00:41.6]} 20...
Be7 {[%clk 0:00:52.8]} 21. Nxb7 {[%clk 0:00:40.8]} 21... Bxb7 {[%clk 0:00:48.1]}
22. Bxb7 {[%clk 0:00:41.7]} 22... Rd8 {[%clk 0:00:47.7]} 23. Bc6+ {[%clk
0:00:38.3]} 23... Kf8 {[%clk 0:00:47.9]} 24. Bxe7+ {[%clk 0:00:37.2]} 24... Kxe7
{[%clk 0:00:48.8]} 25. Rxd8 {[%clk 0:00:37.7]} 25... Kxd8 {[%clk 0:00:48.8]} 26.
f4 {[%clk 0:00:30.1]} 26... Kc7 {[%clk 0:00:48.6]} 27. Bf3 {[%clk 0:00:30.1]}
27... a5 {[%clk 0:00:42.8]} 28. Kf2 {[%clk 0:00:30.3]} 28... Kd6 {[%clk
0:00:43]} 29. Ke3 {[%clk 0:00:30.9]} 29... Kc5 {[%clk 0:00:43.4]} 30. Kd3 {[%clk
0:00:31.6]} 30... Kb4 {[%clk 0:00:40.9]} 31. Bd1 {[%clk 0:00:20.3]} 31... h6
{[%clk 0:00:22.8]} 32. a3+ {[%clk 0:00:20]} 32... Kc5 {[%clk 0:00:23.2]} 33. Bf3
{[%clk 0:00:12.9]} 33... g5 {[%clk 0:00:21.9]} 34. fxg5 {[%clk 0:00:07.6]} 34...
hxg5 {[%clk 0:00:22.8]} 35. Kc3 {[%clk 0:00:08.2]} 35... a4 {[%clk 0:00:21.3]}
36. Kd3 {[%clk 0:00:08.9]} 36... e5 {[%clk 0:00:21]} 37. Bd1 {[%clk 0:00:09.2]}
37... e4+ {[%clk 0:00:21.5]} 38. Kc3 {[%clk 0:00:09.8]} 38... e3 {[%clk
0:00:17.4]} 39. Bxa4 {[%clk 0:00:05.9]} 39... Ne4+ {[%clk 0:00:15.1]} 40. Kd3
{[%clk 0:00:06.1]} 40... Nf2+ {[%clk 0:00:14.1]} 41. Kxe3 {[%clk 0:00:05.5]}
41... Ng4+ {[%clk 0:00:15]} 42. Kd3 {[%clk 0:00:05.4]} 42... Nf2+ {[%clk
0:00:14.4]} 43. Kc3 {[%clk 0:00:04.6]} 43... Ne4+ {[%clk 0:00:14.6]} 44. Kd3
{[%clk 0:00:04.9]} 44... Nf2+ {[%clk 0:00:14.9]} 45. Ke2 {[%clk 0:00:05.7]}
45... Ng4 {[%clk 0:00:13.6]} 46. Bb5 {[%clk 0:00:06.1]} 46... Nxh2 {[%clk
0:00:13.4]} 47. Kd3 {[%clk 0:00:06.3]} 47... Ng4 {[%clk 0:00:13.2]} 48. b4+
{[%clk 0:00:07.2]} 48... Kb6 {[%clk 0:00:13.2]} 49. a4 {[%clk 0:00:07.8]} 49...
f5 {[%clk 0:00:13.1]} 50. c5+ {[%clk 0:00:07.5]} 50... Kc7 {[%clk 0:00:13.3]}
51. a5 {[%clk 0:00:07.9]} 51... f4 {[%clk 0:00:13.5]} 52. a6 {[%clk 0:00:08.1]}
52... Ne5+ {[%clk 0:00:12.9]} 53. Ke4 {[%clk 0:00:07.8]} 53... Nf7 {[%clk
0:00:11.7]} 54. Bc4 {[%clk 0:00:08.2]} 54... Nd8 {[%clk 0:00:11.7]} 55. b5
{[%clk 0:00:08.4]} 1-0

[Event "Late-Titled-Tuesday-Blitz-April-16-2024"]
[Site "Chess.com"]
[Date "2024.04.16"]
[Round "8"]
[White "Itay121"]
[Black "AlexPapasimakopoulos"]
[Result "0-1"]
[WhiteElo "2530"]
[BlackElo "2646"]
[TimeControl "180+1"]
[EndTime "15:25:55 PDT"]
[Termination "AlexPapasimakopoulos won on time"]

1. e4 {[%clk 0:03:00.9]} 1... e6 {[%clk 0:03:00]} 2. d4 {[%clk 0:02:57.6]} 2...
d5 {[%clk 0:03:00.9]} 3. exd5 {[%clk 0:02:55.6]} 3... exd5 {[%clk 0:03:01.8]} 4.
Bd3 {[%clk 0:02:55.8]} 4... Nc6 {[%clk 0:02:58.5]} 5. c3 {[%clk 0:02:55.9]} 5...
Bd6 {[%clk 0:02:58.6]} 6. Ne2 {[%clk 0:02:55.3]} 6... Qh4 {[%clk 0:02:58.6]} 7.
Nd2 {[%clk 0:02:52.4]} 7... Bg4 {[%clk 0:02:58]} 8. Qb3 {[%clk 0:02:31.7]} 8...
O-O-O {[%clk 0:02:47.5]} 9. Nf1 {[%clk 0:02:30.7]} 9... Nf6 {[%clk 0:02:43.3]}
10. Be3 {[%clk 0:02:29.8]} 10... Rhe8 {[%clk 0:02:31.3]} 11. O-O-O {[%clk
0:02:28.8]} 11... Bxe2 {[%clk 0:02:22.9]} 12. Bxe2 {[%clk 0:02:29.7]} 12... Bf4
{[%clk 0:02:23.1]} 13. g3 {[%clk 0:02:23.7]} 13... Bxe3+ {[%clk 0:02:22.9]} 14.
Nxe3 {[%clk 0:02:24.6]} 14... Qg5 {[%clk 0:02:19]} 15. Bd3 {[%clk 0:02:17.4]}
15... Kb8 {[%clk 0:02:02.3]} 16. Kb1 {[%clk 0:02:15.5]} 16... g6 {[%clk
0:01:59.4]} 17. Qc2 {[%clk 0:02:14.3]} 17... h5 {[%clk 0:01:57.9]} 18. h4 {[%clk
0:02:12.4]} 18... Qh6 {[%clk 0:01:57.2]} 19. Rhe1 {[%clk 0:02:12.3]} 19... a6
{[%clk 0:01:50.6]} 20. Ng2 {[%clk 0:02:09.7]} 20... Ng4 {[%clk 0:01:44.4]} 21.
Nf4 {[%clk 0:02:04.7]} 21... Qf8 {[%clk 0:01:43.8]} 22. Rxe8 {[%clk 0:02:00.5]}
22... Qxe8 {[%clk 0:01:44.7]} 23. Qd2 {[%clk 0:01:58.6]} 23... Qd7 {[%clk
0:01:41.8]} 24. Re1 {[%clk 0:01:58.8]} 24... Ne7 {[%clk 0:01:41.6]} 25. Qe2
{[%clk 0:01:56]} 25... Nf5 {[%clk 0:01:41.2]} 26. Qf3 {[%clk 0:01:52.5]} 26...
c6 {[%clk 0:01:39]} 27. Qe2 {[%clk 0:01:48.8]} 27... Nd6 {[%clk 0:01:38.3]} 28.
f3 {[%clk 0:01:36.4]} 28... Nh6 {[%clk 0:01:32]} 29. Qd2 {[%clk 0:01:35.3]}
29... Nhf5 {[%clk 0:01:30.7]} 30. Qf2 {[%clk 0:01:30.3]} 30... Re8 {[%clk
0:01:27.4]} 31. Re5 {[%clk 0:01:27.7]} 31... Rxe5 {[%clk 0:01:21.4]} 32. dxe5
{[%clk 0:01:28.6]} 32... Nc4 {[%clk 0:01:22.3]} 33. Bxc4 {[%clk 0:01:22.8]}
33... dxc4 {[%clk 0:01:23.2]} 34. Kc1 {[%clk 0:01:11.8]} 34... Qe7 {[%clk
0:01:22.4]} 35. e6 {[%clk 0:01:05]} 35... fxe6 {[%clk 0:01:08.8]} 36. Nxg6
{[%clk 0:01:04.9]} 36... Qg7 {[%clk 0:01:06.5]} 37. Nf4 {[%clk 0:00:56.5]} 37...
e5 {[%clk 0:01:06.8]} 38. Nxh5 {[%clk 0:00:37]} 38... Qh6+ {[%clk 0:01:06.7]}
39. Qd2 {[%clk 0:00:37.5]} 39... Qxh5 {[%clk 0:01:04.3]} 40. g4 {[%clk
0:00:37.3]} 40... Qxh4 {[%clk 0:00:58.4]} 41. gxf5 {[%clk 0:00:36.7]} 41... Kc7
{[%clk 0:00:52.1]} 42. Qe3 {[%clk 0:00:29.7]} 42... Qf4 {[%clk 0:00:46.6]} 43.
Kd2 {[%clk 0:00:23.1]} 43... Qxf5 {[%clk 0:00:39.3]} 44. Qf2 {[%clk 0:00:14.1]}
44... Qf4+ {[%clk 0:00:38]} 45. Kc2 {[%clk 0:00:13.9]} 45... e4 {[%clk
0:00:28.2]} 46. Qd4 {[%clk 0:00:14.5]} 46... Qh2+ {[%clk 0:00:26.8]} 47. Kc1
{[%clk 0:00:12.8]} 47... Qh1+ {[%clk 0:00:26.9]} 48. Kc2 {[%clk 0:00:11.5]}
48... Qg2+ {[%clk 0:00:27.6]} 49. Kc1 {[%clk 0:00:10.6]} 49... Qf1+ {[%clk
0:00:28.2]} 50. Kd2 {[%clk 0:00:07.3]} 50... Qd3+ {[%clk 0:00:08.5]} 51. Qxd3
{[%clk 0:00:07.8]} 51... exd3 {[%clk 0:00:09.4]} 52. a4 {[%clk 0:00:05.8]} 52...
b5 {[%clk 0:00:08.7]} 53. a5 {[%clk 0:00:02.8]} 53... Kd6 {[%clk 0:00:08.4]} 54.
Ke3 {[%clk 0:00:03.3]} 54... Ke5 {[%clk 0:00:08.5]} 55. b4 {[%clk 0:00:01.7]}
55... cxb3 {[%clk 0:00:05.4]} 56. Kxd3 {[%clk 0:00:02.6]} 56... c5 {[%clk
0:00:05.5]} 57. c4 {[%clk 0:00:02.6]} 57... b4 {[%clk 0:00:03]} 0-1

[Event "Late-Titled-Tuesday-Blitz-April-16-2024"]
[Site "Chess.com"]
[Date "2024.04.16"]
[Round "8"]
[White "Meri-Arabidze"]
[Black "Savagelittlemole"]
[Result "1-0"]
[WhiteElo "2650"]
[BlackElo "2492"]
[TimeControl "180+1"]
[EndTime "15:25:56 PDT"]
[Termination "Meri-Arabidze won by resignation"]

1. d4 {[%clk 0:02:57.7]} 1... g6 {[%clk 0:03:00.2]} 2. g3 {[%clk 0:02:57.5]}
2... Bg7 {[%clk 0:03:00.8]} 3. Bg2 {[%clk 0:02:58.1]} 3... d6 {[%clk 0:03:00.4]}
4. Nf3 {[%clk 0:02:58.3]} 4... Nf6 {[%clk 0:03:00.8]} 5. O-O {[%clk 0:02:58.5]}
5... O-O {[%clk 0:03:01.6]} 6. a4 {[%clk 0:02:58.9]} 6... c5 {[%clk 0:03:01.9]}
7. dxc5 {[%clk 0:02:53.5]} 7... dxc5 {[%clk 0:03:02.8]} 8. Qxd8 {[%clk
0:02:50.9]} 8... Rxd8 {[%clk 0:03:03.7]} 9. a5 {[%clk 0:02:51.6]} 9... a6 {[%clk
0:02:57.3]} 10. Nc3 {[%clk 0:02:50.7]} 10... Nc6 {[%clk 0:02:56.8]} 11. Na4
{[%clk 0:02:45.2]} 11... Nd7 {[%clk 0:02:24.9]} 12. Bd2 {[%clk 0:02:33.8]} 12...
Nd4 {[%clk 0:02:19.7]} 13. Nxd4 {[%clk 0:02:30.9]} 13... cxd4 {[%clk 0:02:20.6]}
14. Bb4 {[%clk 0:02:20.8]} 14... e5 {[%clk 0:02:14.5]} 15. c3 {[%clk 0:02:20.8]}
15... Nf6 {[%clk 0:02:00.1]} 16. Nb6 {[%clk 0:02:15.6]} 16... Rb8 {[%clk
0:01:59]} 17. Be7 {[%clk 0:02:14.7]} 17... Bg4 {[%clk 0:01:46.2]} 18. Bxd8
{[%clk 0:02:13.5]} 18... Rxd8 {[%clk 0:01:47.1]} 19. Rfe1 {[%clk 0:01:48.7]}
19... Nd7 {[%clk 0:01:34.8]} 20. Bxb7 {[%clk 0:01:42.7]} 20... Nxb6 {[%clk
0:01:34.6]} 21. axb6 {[%clk 0:01:42.7]} 21... Rb8 {[%clk 0:01:35.3]} 22. Bxa6
{[%clk 0:01:33.8]} 22... Rxb6 {[%clk 0:01:35.4]} 23. cxd4 {[%clk 0:01:20.8]}
23... exd4 {[%clk 0:01:34.2]} 24. Reb1 {[%clk 0:01:11.7]} 24... Bh6 {[%clk
0:01:08.9]} 25. Bd3 {[%clk 0:01:05]} 25... Bd2 {[%clk 0:01:08.4]} 26. Ra6 {[%clk
0:00:56.8]} 26... Rb4 {[%clk 0:01:01.9]} 27. b3 {[%clk 0:00:48.6]} 27... Bc3
{[%clk 0:00:56.6]} 28. Bc4 {[%clk 0:00:45.6]} 28... Bf5 {[%clk 0:00:47]} 29. Rc1
{[%clk 0:00:34.3]} 29... Rb7 {[%clk 0:00:45.2]} 30. Kg2 {[%clk 0:00:21.9]} 30...
Bb2 {[%clk 0:00:34.8]} 31. Rd1 {[%clk 0:00:21.4]} 31... Bc3 {[%clk 0:00:35.5]}
32. Ra2 {[%clk 0:00:20.5]} 32... Kg7 {[%clk 0:00:32.1]} 33. f3 {[%clk
0:00:20.8]} 33... h5 {[%clk 0:00:30.9]} 34. h3 {[%clk 0:00:21.1]} 34... Re7
{[%clk 0:00:24.7]} 35. g4 {[%clk 0:00:21]} 35... hxg4 {[%clk 0:00:24.3]} 36.
hxg4 {[%clk 0:00:21.9]} 36... Bc8 {[%clk 0:00:23.9]} 37. Kf2 {[%clk 0:00:21.6]}
37... Be6 {[%clk 0:00:14.4]} 38. Bxe6 {[%clk 0:00:20.7]} 38... Rxe6 {[%clk
0:00:15.3]} 39. Rb1 {[%clk 0:00:17.3]} 39... Rb6 {[%clk 0:00:14.2]} 40. Ra4
{[%clk 0:00:17.4]} 40... Bb4 {[%clk 0:00:13.5]} 41. Ra8 {[%clk 0:00:15.4]} 41...
Kf6 {[%clk 0:00:11.4]} 42. Rc8 {[%clk 0:00:15.5]} 42... Bd2 {[%clk 0:00:10.5]}
43. Rc4 {[%clk 0:00:13.8]} 43... Be3+ {[%clk 0:00:10.7]} 44. Kg2 {[%clk
0:00:14]} 44... Rb8 {[%clk 0:00:09.7]} 45. b4 {[%clk 0:00:13.8]} 45... Rh8
{[%clk 0:00:09.7]} 46. b5 {[%clk 0:00:12.8]} 46... Kg5 {[%clk 0:00:10.2]} 47. b6
{[%clk 0:00:11.3]} 47... Bf4 {[%clk 0:00:05.3]} 48. Rh1 {[%clk 0:00:10]} 48...
Rb8 {[%clk 0:00:04.8]} 49. Rc5+ {[%clk 0:00:10.3]} 49... Kf6 {[%clk 0:00:04.6]}
50. Rb5 {[%clk 0:00:10.5]} 50... Kg7 {[%clk 0:00:01.6]} 51. b7 {[%clk
0:00:10.1]} 51... Bc7 {[%clk 0:00:01.7]} 52. Rc1 {[%clk 0:00:09.7]} 52... Bf4
{[%clk 0:00:01.7]} 53. Rc8 {[%clk 0:00:09.8]} 53... f5 {[%clk 0:00:02]} 54. Rxb8
{[%clk 0:00:10]} 54... Bxb8 {[%clk 0:00:01.6]} 55. gxf5 {[%clk 0:00:10.9]} 55...
gxf5 {[%clk 0:00:02.1]} 56. Rxf5 {[%clk 0:00:10.7]} 56... Bc7 {[%clk 0:00:02.2]}
57. Rc5 {[%clk 0:00:10.8]} 57... Bf4 {[%clk 0:00:02]} 58. Rc8 {[%clk 0:00:10.8]}
58... Kg6 {[%clk 0:00:02.5]} 59. b8=Q {[%clk 0:00:11]} 1-0

[Event "Late-Titled-Tuesday-Blitz-April-16-2024"]
[Site "Chess.com"]
[Date "2024.04.16"]
[Round "8"]
[White "kleber2007"]
[Black "Bkmzzzzz"]
[Result "1/2-1/2"]
[WhiteElo "2525"]
[BlackElo "2393"]
[TimeControl "180+1"]
[EndTime "15:25:56 PDT"]
[Termination "Game drawn by repetition"]

1. Nf3 {[%clk 0:02:57]} 1... d6 {[%clk 0:02:59.6]} 2. d4 {[%clk 0:02:56.6]} 2...
Nd7 {[%clk 0:02:57.8]} 3. c4 {[%clk 0:02:51.8]} 3... f5 {[%clk 0:02:57.7]} 4.
Nc3 {[%clk 0:02:48.8]} 4... Ngf6 {[%clk 0:02:57.7]} 5. g3 {[%clk 0:02:43.4]}
5... e5 {[%clk 0:02:56.8]} 6. Bg2 {[%clk 0:02:39.7]} 6... e4 {[%clk 0:02:39.5]}
7. Ng5 {[%clk 0:02:33.7]} 7... Qe7 {[%clk 0:02:38.1]} 8. h4 {[%clk 0:02:21.9]}
8... h6 {[%clk 0:02:30.9]} 9. Nh3 {[%clk 0:02:20.7]} 9... g6 {[%clk 0:02:31.4]}
10. Nf4 {[%clk 0:02:14.3]} 10... Kf7 {[%clk 0:02:27.5]} 11. Qb3 {[%clk
0:02:09.8]} 11... c6 {[%clk 0:02:19.4]} 12. c5+ {[%clk 0:01:54.8]} 12... d5
{[%clk 0:02:19]} 13. h5 {[%clk 0:01:54.8]} 13... Nxh5 {[%clk 0:02:07.5]} 14.
Nxh5 {[%clk 0:01:51.8]} 14... gxh5 {[%clk 0:02:08.4]} 15. Bf4 {[%clk 0:01:48]}
15... Bg7 {[%clk 0:02:06.8]} 16. e3 {[%clk 0:01:47.6]} 16... Nf6 {[%clk
0:02:01.1]} 17. Bd6 {[%clk 0:01:43.4]} 17... Qd8 {[%clk 0:01:49.8]} 18. Ne2
{[%clk 0:01:42.8]} 18... b5 {[%clk 0:01:41.8]} 19. Nf4 {[%clk 0:01:39.9]} 19...
Ne8 {[%clk 0:01:29.1]} 20. Be5 {[%clk 0:01:24.1]} 20... Bxe5 {[%clk 0:01:25.6]}
21. dxe5 {[%clk 0:01:25]} 21... Qe7 {[%clk 0:01:21.2]} 22. Qc3 {[%clk
0:01:14.9]} 22... Ng7 {[%clk 0:01:06.9]} 23. Bf1 {[%clk 0:01:03.4]} 23... Re8
{[%clk 0:00:58.4]} 24. Be2 {[%clk 0:00:59.7]} 24... Qxe5 {[%clk 0:00:56.7]} 25.
Bxh5+ {[%clk 0:00:51.1]} 25... Nxh5 {[%clk 0:00:52.6]} 26. Rxh5 {[%clk
0:00:51.6]} 26... Qxc3+ {[%clk 0:00:47.9]} 27. bxc3 {[%clk 0:00:52.5]} 27... Kg7
{[%clk 0:00:46.4]} 28. Kd2 {[%clk 0:00:49.9]} 28... Bd7 {[%clk 0:00:40.9]} 29.
Rah1 {[%clk 0:00:38.1]} 29... Rh8 {[%clk 0:00:39.9]} 30. R5h4 {[%clk 0:00:37.9]}
30... Be8 {[%clk 0:00:34.5]} 31. Ne6+ {[%clk 0:00:35.3]} 31... Kg6 {[%clk
0:00:32.2]} 32. Nd4 {[%clk 0:00:36.2]} 32... Bd7 {[%clk 0:00:28.9]} 33. Rh5
{[%clk 0:00:35]} 33... a5 {[%clk 0:00:27.4]} 34. a3 {[%clk 0:00:33.8]} 34...
Rab8 {[%clk 0:00:22.5]} 35. R5h4 {[%clk 0:00:32.4]} 35... b4 {[%clk 0:00:22.3]}
36. axb4 {[%clk 0:00:29.1]} 36... axb4 {[%clk 0:00:23.2]} 37. cxb4 {[%clk
0:00:29.4]} 37... Rxb4 {[%clk 0:00:23.1]} 38. Ra1 {[%clk 0:00:29.9]} 38... Rhb8
{[%clk 0:00:20.9]} 39. Ke2 {[%clk 0:00:20.4]} 39... Rb2+ {[%clk 0:00:20.3]} 40.
Kf1 {[%clk 0:00:20.5]} 40... Rb1+ {[%clk 0:00:20.7]} 41. Rxb1 {[%clk 0:00:20.4]}
41... Rxb1+ {[%clk 0:00:21.6]} 42. Kg2 {[%clk 0:00:21]} 42... Rc1 {[%clk
0:00:21.7]} 43. Rh1 {[%clk 0:00:15.9]} 43... Rxc5 {[%clk 0:00:21.7]} 44. Ra1
{[%clk 0:00:15.6]} 44... Be8 {[%clk 0:00:20.4]} 45. Ra7 {[%clk 0:00:15.8]} 45...
Bf7 {[%clk 0:00:20.2]} 46. Rc7 {[%clk 0:00:14.1]} 46... Rc4 {[%clk 0:00:18.6]}
47. Rxc6+ {[%clk 0:00:13.1]} 47... Rxc6 {[%clk 0:00:18.4]} 48. Nxc6 {[%clk
0:00:14]} 48... Kf6 {[%clk 0:00:18.6]} 49. Nd4 {[%clk 0:00:14.6]} 49... Be6
{[%clk 0:00:19]} 50. Kf1 {[%clk 0:00:14.5]} 50... Bd7 {[%clk 0:00:19]} 51. Ke2
{[%clk 0:00:15]} 51... Ke5 {[%clk 0:00:18.9]} 52. Kd2 {[%clk 0:00:15.1]} 52...
Kd6 {[%clk 0:00:18.7]} 53. Ne2 {[%clk 0:00:14.5]} 53... Kc5 {[%clk 0:00:18.4]}
54. Nd4 {[%clk 0:00:14.9]} 54... Kc4 {[%clk 0:00:17.8]} 55. Nc2 {[%clk 0:00:15]}
55... Ba4 {[%clk 0:00:16.9]} 56. Nd4 {[%clk 0:00:15.3]} 56... Bd7 {[%clk
0:00:17.6]} 57. Ne2 {[%clk 0:00:14.7]} 57... Kc5 {[%clk 0:00:17.6]} 58. Kc3
{[%clk 0:00:14.4]} 58... Bb5 {[%clk 0:00:17.2]} 59. Nd4 {[%clk 0:00:14.8]} 59...
Bd7 {[%clk 0:00:17.9]} 60. Nb3+ {[%clk 0:00:14.2]} 60... Kd6 {[%clk 0:00:17.7]}
61. Kd4 {[%clk 0:00:14.5]} 61... Bc8 {[%clk 0:00:17.7]} 62. Nc5 {[%clk
0:00:13.2]} 62... h5 {[%clk 0:00:15.6]} 63. Nb3 {[%clk 0:00:11.4]} 63... Bd7
{[%clk 0:00:15.9]} 64. Nd2 {[%clk 0:00:11.6]} 64... Ba4 {[%clk 0:00:15.4]} 65.
Nb1 {[%clk 0:00:09.3]} 65... Bb5 {[%clk 0:00:13]} 66. Nc3 {[%clk 0:00:10.2]}
66... Bc4 {[%clk 0:00:13.1]} 67. Na4 {[%clk 0:00:09.6]} 67... Kc6 {[%clk
0:00:12.5]} 68. Nc3 {[%clk 0:00:10.5]} 68... Kd6 {[%clk 0:00:12.6]} 69. Na4
{[%clk 0:00:10.4]} 69... Bb3 {[%clk 0:00:13.1]} 70. Nc3 {[%clk 0:00:11.3]} 70...
Bc4 {[%clk 0:00:13.8]} 1/2-1/2

[Event "Late-Titled-Tuesday-Blitz-April-16-2024"]
[Site "Chess.com"]
[Date "2024.04.16"]
[Round "8"]
[White "Fengwi"]
[Black "ansko1999"]
[Result "0-1"]
[WhiteElo "2457"]
[BlackElo "2585"]
[TimeControl "180+1"]
[EndTime "15:26:04 PDT"]
[Termination "ansko1999 won by resignation"]

1. Nf3 {[%clk 0:02:59.3]} 1... b6 {[%clk 0:02:57.9]} 2. g3 {[%clk 0:02:57.2]}
2... Bb7 {[%clk 0:02:58.4]} 3. Bg2 {[%clk 0:02:57.7]} 3... Nf6 {[%clk
0:02:58.5]} 4. b3 {[%clk 0:02:57.9]} 4... g6 {[%clk 0:02:58.3]} 5. Bb2 {[%clk
0:02:58.4]} 5... Bg7 {[%clk 0:02:59]} 6. O-O {[%clk 0:02:58.8]} 6... O-O {[%clk
0:02:59.3]} 7. c4 {[%clk 0:02:59.4]} 7... c5 {[%clk 0:02:58.7]} 8. Nc3 {[%clk
0:02:59.4]} 8... d6 {[%clk 0:02:54.1]} 9. d4 {[%clk 0:02:58.7]} 9... cxd4 {[%clk
0:02:55]} 10. Nxd4 {[%clk 0:02:58.3]} 10... Bxg2 {[%clk 0:02:54.4]} 11. Kxg2
{[%clk 0:02:59.2]} 11... Qc7 {[%clk 0:02:50.8]} 12. e3 {[%clk 0:02:49.7]} 12...
Qb7+ {[%clk 0:02:45]} 13. Qf3 {[%clk 0:02:49.1]} 13... Qxf3+ {[%clk 0:02:44.5]}
14. Kxf3 {[%clk 0:02:49.3]} 14... Rc8 {[%clk 0:02:42.8]} 15. Rac1 {[%clk
0:02:26.9]} 15... Nc6 {[%clk 0:02:42]} 16. Nd5 {[%clk 0:02:14.3]} 16... Nxd5
{[%clk 0:02:26.2]} 17. cxd5 {[%clk 0:02:06.5]} 17... Bxd4 {[%clk 0:02:13.2]} 18.
Bxd4 {[%clk 0:02:00.2]} 18... Nb4 {[%clk 0:02:06.4]} 19. e4 {[%clk 0:01:45.7]}
19... Nxa2 {[%clk 0:02:01.3]} 20. Rc4 {[%clk 0:00:29.2]} 20... Rxc4 {[%clk
0:01:38.3]} 21. bxc4 {[%clk 0:00:30.1]} 21... Nb4 {[%clk 0:01:38.8]} 22. Bc3
{[%clk 0:00:20.5]} 22... Nd3 {[%clk 0:01:36]} 23. Ra1 {[%clk 0:00:19.3]} 23...
Nc5 {[%clk 0:01:32.9]} 24. Ke3 {[%clk 0:00:18.8]} 24... f6 {[%clk 0:01:30.7]}
25. f4 {[%clk 0:00:17.4]} 25... Kf7 {[%clk 0:01:29.1]} 26. e5 {[%clk 0:00:17.7]}
26... f5 {[%clk 0:01:26.3]} 27. e6+ {[%clk 0:00:17.3]} 27... Ke8 {[%clk
0:01:24.4]} 28. h3 {[%clk 0:00:16.7]} 28... Kd8 {[%clk 0:01:17.9]} 29. g4 {[%clk
0:00:16.7]} 29... Kc7 {[%clk 0:01:18]} 30. Rg1 {[%clk 0:00:15.2]} 30... Rf8
{[%clk 0:00:54.6]} 31. Bg7 {[%clk 0:00:14.6]} 31... Rg8 {[%clk 0:00:54.9]} 32.
Bh6 {[%clk 0:00:12.7]} 32... fxg4 {[%clk 0:00:47.8]} 33. hxg4 {[%clk 0:00:11.4]}
33... a5 {[%clk 0:00:45.6]} 34. Bg5 {[%clk 0:00:09.8]} 34... Kd8 {[%clk
0:00:32.4]} 35. Rh1 {[%clk 0:00:08.8]} 35... Rh8 {[%clk 0:00:28.2]} 36. Rb1
{[%clk 0:00:04.9]} 36... Na4 {[%clk 0:00:26.8]} 37. Ra1 {[%clk 0:00:04.5]} 37...
Nc5 {[%clk 0:00:22.1]} 38. Rb1 {[%clk 0:00:04.6]} 38... h6 {[%clk 0:00:06.3]}
39. Bh4 {[%clk 0:00:04.3]} 39... Na4 {[%clk 0:00:05.4]} 40. f5 {[%clk
0:00:04.4]} 40... g5 {[%clk 0:00:03.4]} 41. Be1 {[%clk 0:00:03.5]} 41... Kc7
{[%clk 0:00:03.4]} 42. Ra1 {[%clk 0:00:03]} 42... Nc5 {[%clk 0:00:03.6]} 43. Bc3
{[%clk 0:00:03.5]} 43... Rf8 {[%clk 0:00:04]} 44. Rh1 {[%clk 0:00:03.7]} 44...
a4 {[%clk 0:00:04]} 45. Rxh6 {[%clk 0:00:04.2]} 45... a3 {[%clk 0:00:04.4]} 46.
Rh7 {[%clk 0:00:04.6]} 46... Re8 {[%clk 0:00:03.7]} 47. f6 {[%clk 0:00:04.7]}
47... a2 {[%clk 0:00:03.7]} 48. Rxe7+ {[%clk 0:00:03.8]} 48... Kd8 {[%clk
0:00:02.7]} 49. Rxe8+ {[%clk 0:00:02.8]} 49... Kxe8 {[%clk 0:00:03.2]} 50. f7+
{[%clk 0:00:03.7]} 50... Kf8 {[%clk 0:00:02.7]} 51. Bb2 {[%clk 0:00:03.2]} 51...
Na4 {[%clk 0:00:02.9]} 52. Ba1 {[%clk 0:00:03.2]} 52... Nc5 {[%clk 0:00:03]} 53.
Kd2 {[%clk 0:00:03.2]} 53... Nb3+ {[%clk 0:00:03.3]} 54. Kc2 {[%clk 0:00:03.9]}
54... Nxa1+ {[%clk 0:00:04.2]} 55. Kb2 {[%clk 0:00:04.6]} 55... Nc2 {[%clk
0:00:03.8]} 56. Kxa2 {[%clk 0:00:05.3]} 56... Ne3 {[%clk 0:00:04.1]} 57. Kb3
{[%clk 0:00:05.5]} 57... Nxg4 {[%clk 0:00:03.9]} 58. Kb4 {[%clk 0:00:05.4]}
58... Ne3 {[%clk 0:00:04.2]} 59. Kb5 {[%clk 0:00:06.1]} 59... g4 {[%clk
0:00:03.7]} 60. Kc6 {[%clk 0:00:04.2]} 60... Ke7 {[%clk 0:00:02.8]} 61. f8=Q+
{[%clk 0:00:01.7]} 61... Kxf8 {[%clk 0:00:03]} 62. Kd7 {[%clk 0:00:02.2]} 62...
Nf5 {[%clk 0:00:03.8]} 63. e7+ {[%clk 0:00:01.6]} 63... Nxe7 {[%clk 0:00:04.2]}
64. Kxd6 {[%clk 0:00:02.5]} 64... g3 {[%clk 0:00:04.8]} 65. Kd7 {[%clk
0:00:02.8]} 65... g2 {[%clk 0:00:05]} 66. d6 {[%clk 0:00:03.7]} 66... Nf5 {[%clk
0:00:05.5]} 67. Ke6 {[%clk 0:00:03.6]} 67... Nxd6 {[%clk 0:00:06]} 68. Kxd6
{[%clk 0:00:04.5]} 68... g1=Q {[%clk 0:00:06.8]} 69. Kd5 {[%clk 0:00:04.4]}
69... Qc5+ {[%clk 0:00:07.7]} 0-1